Workbook

Sheet Utilisation
B3: Outil Abaque de Noiret
B6: Il s'agit d'un outil d'aide à la décision qui permet d'orienter le choix d'une politiqyue de
B7: maintenance sur un équipement de production.
B8: Le calcul tient compte des caractéristiques de l'équipement et de son utilisation.
B12: 1° Effacer les éventuelles tracés existants (touche RAZ lignes)
B14: 2° Saisir l'âge de l'équipement à l'aide de la liste déroulante
B16: 3° Pour chacune des 8 rubriques, cochez le cas qui vous paraît être le
B17: plus représentatif de votre équipement.
B19: 4° Revenez au haut de la feuille puis cliquez sur la touche TRACER
B20: Le parcours de l'abaque est alors automatique et aboutit à la situation
B21: finale recommandée :
D23: Préventif recommandé
D25: Pas de préférence
D27: Préventif non nécessaire
B29: Le score total s'affiche à coté de la recommandation
B30: A chaque étape, le score intermédiaire s'affiche.
B32: Attention : il ne faut pas modifier ou déplacer les graphiques, ni changer les données de
B33: la partie droite de l'outil.

Sheet Abaque
F2: AGE | N2: INTERDEPENDANCE
AA6: 70 | AB6: 60 | AC6: 50 | AD6: 40 | AE6: 30 | AF6: 20 | AG6: 10 | AJ6: 5 | AK6: 25 | AL6: 25 | AM6: 45 | AP6: 5 | AQ6: 15 | AR6: 25 | AS6: 35 | AT6: 45 | AU6: 55 | AX6: 20 | AY6: 40 | AZ6: 50 | BA6: 70 | BB6: 90 | BE6: 5 | BF6: 10 | BG6: 15 | BH6: 20 | BI6: 25 | BJ6: 30 | BM6: 10 | BN6: 35 | BO6: 55 | BR6: 75 | BS6: 175 | BT6: 250 | BW6: 25 | BX6: 100 | BY6: 150 | BZ6: 225 | CH6: A | CJ6: B
W7: Age du matériel | Z7: Interdépendance | AI7: Complexité | AO7: Coût | AW7: Origine | BD7: Robustesse | BL7: Perte de produit | BQ7: Conditions de travail | BV7: Délai | CB7: Résultat | CH7: xA | CI7: yA | CJ7: xB | CK7: yB | CM7: Coef | CN7: Ord Orig
W8: 20 | X8: =((10-90)/(20-0))*(W8-0)+90 -> 10 | Z8: 160 | AA8: =((90-10)/(160-80))*(Z8-80)+10 -> 90 | AI8: 160 | AJ8: =((165-25)/(160-20))*(AI8-20)+25 -> 165 | AK8: =((165-25)/(160-20))*(AI8-20)+45 -> 185 | AL8: =((165-25)/(160-20))*(AI8-20)+46 -> 186 | AM8: =((165-25)/(160-20))*(AI8-20)+65 -> 205 | AO8: 260 | AU8: =((205-25)/(210-30))*($AO8-50-30)+25 -> 205 | AW8: 260 | AX8: =((280-50)/(260-30))*($AW8-30)+50 -> 280 | AY8: =((300-70)/(260-30))*($AW8-30)+70 -> 300 | AZ8: =((310-80)/(260-30))*($AW8-30)+80 -> 310 | BA8: =((330-100)/(260-30))*($AW8-30)+100 -> 330 | BB8: =((350-120)/(260-30))*($AW8-30)+120 -> 350 | BD8: 380 | BJ8: =((350-50)/(380-80))*($BD8-80)+50 -> 350 | BL8: 380 | BM8: =((390-65)/(380-55))*($BL8-55)+65 -> 390 | BN8: =((415-90)/(380-55))*($BL8-55)+90 -> 415 | BO8: =((435-110)/(380-55))*($BL8-55)+110 -> 435 | BQ8: 140 | BR8: =((435-65)/(510-140))*($BQ8-140)+65 -> 65 | BV8: 140 | BW8: =((710-165)/(685-140))*($BV8-140)+165 -> 165 | BX8: =((785-240)/(685-140))*($BV8-140)+240 -> 240 | BY8: =((710-165)/(835-290))*($BV8-140)+290 -> 290 | BZ8: =((710-165)/(910-365))*($BV8-140)+365 -> 365 | CB8: 0 | CC8: 510 | CD8: 560 | CF8: Ages | CG8: 0 à 20 | CH8: 300 | CI8: 51 | CJ8: 540 | CK8: 51 | CM8: =(CI8-CK8)/(CH8-CJ8) -> 0 | CN8: =CI8-CM8*CH8 -> 51
W9: 19 | X9: =((10-90)/(20-0))*(W9-0)+90 -> 14 | Z9: 155 | AA9: 85 | AI9: 155 | AJ9: =((165-25)/(160-20))*(AI9-20)+25 -> 160 | AK9: =((165-25)/(160-20))*(AI9-20)+45 -> 180 | AL9: =((165-25)/(160-20))*(AI9-20)+46 -> 181 | AM9: =((165-25)/(160-20))*(AI9-20)+65 -> 200 | AO9: 250 | AT9: =((205-25)/(210-30))*($AO9-40-30)+25 -> 205 | AU9: 195 | AW9: 250 | AX9: =((280-50)/(260-30))*($AW9-30)+50 -> 270 | AY9: =((300-70)/(260-30))*($AW9-30)+70 -> 290 | AZ9: =((310-80)/(260-30))*($AW9-30)+80 -> 300 | BA9: 320 | BB9: =((350-120)/(260-30))*($AW9-30)+120 -> 340 | BD9: 375 | BI9: =((350-50)/(375-75))*($BD9-75)+50 -> 350 | BJ9: =((350-50)/(380-80))*($BD9-80)+50 -> 345 | BL9: 375 | BM9: =((390-65)/(380-55))*($BL9-55)+65 -> 385 | BN9: =((415-90)/(380-55))*($BL9-55)+90 -> 410 | BO9: =((435-110)/(380-55))*($BL9-55)+110 -> 430 | BQ9: 145 | BR9: =((435-65)/(510-140))*($BQ9-140)+65 -> 70 | BV9: 145 | BW9: =((710-165)/(685-140))*($BV9-140)+165 -> 170 | BX9: =((785-240)/(685-140))*($BV9-140)+240 -> 245 | BY9: =((710-165)/(835-290))*($BV9-140)+290 -> 295 | BZ9: =((710-165)/(910-365))*($BV9-140)+365 -> 370 | CB9: 10 | CC9: =$CC$8 -> 510 | CD9: =$CD$8 -> 560 | CG9: points | CH9: 540 | CI9: 51 | CJ9: 300 | CK9: 246 | CM9: =(CI9-CK9)/(CH9-CJ9) -> -0.8125 | CN9: =CI9-CM9*CH9 -> 489.75
W10: 18 | X10: 18 | Z10: 150 | AA10: 80 | AB10: =((90-10)/(160-80))*(Z10+10-80)+10 -> 90 | AI10: 150 | AJ10: 155 | AK10: 175 | AL10: 176 | AM10: 195 | AO10: 240 | AS10: =((205-25)/(210-30))*($AO10-30-30)+25 -> 205 | AT10: 195 | AU10: 185 | AW10: 240 | AX10: 260 | AY10: 280 | AZ10: 290 | BA10: 310 | BB10: 330 | BD10: 370 | BH10: =((350-50)/(370-70))*($BD10-70)+50 -> 350 | BI10: 345 | BJ10: 340 | BL10: 370 | BM10: 380 | BN10: 405 | BO10: 425 | BQ10: 150 | BR10: 75 | BV10: 150 | BW10: 175 | BX10: 250 | BY10: 300 | BZ10: 375 | CB10: 20 | CC10: =$CC$8 -> 510 | CD10: =$CD$8 -> 560 | CF10: Interdépendance | CG10: 1 | CH10: 780 | CI10: 51 | CJ10: 916.5 | CK10: 247.5 | CM10: =(CI10-CK10)/(CH10-CJ10) -> 1.43956044 | CN10: =CI10-CM10*CH10 -> -1071.857143
U11: 5 | W11: 17 | X11: 22 | Z11: 145 | AA11: 75 | AB11: 85 | AI11: 145 | AJ11: 150 | AK11: 170 | AL11: 171 | AM11: 190 | AO11: 230 | AR11: =((205-25)/(210-30))*($AO11-20-30)+25 -> 205 | AS11: 195 | AT11: 185 | AU11: 175 | AW11: 230 | AX11: 250 | AY11: 270 | AZ11: 280 | BA11: 300 | BB11: 320 | BD11: 365 | BG11: =((350-50)/(365-65))*($BD11-65)+50 -> 350 | BH11: 345 | BI11: 340 | BJ11: 335 | BL11: 365 | BM11: 375 | BN11: 400 | BO11: 420 | BQ11: 155 | BR11: 80 | BV11: 155 | BW11: 180 | BX11: 255 | BY11: 305 | BZ11: 380 | CB11: 30 | CC11: 510 | CD11: 560 | CG11: 2 | CH11: 797.25 | CI11: 51 | CJ11: 933.75 | CK11: 247.5 | CM11: 1.43956044 | CN11: -1096.68956
W12: 16 | X12: 26 | Z12: 140 | AA12: 70 | AB12: 80 | AC12: =((90-10)/(160-80))*(Z12+20-80)+10 -> 90 | AI12: 140 | AJ12: 145 | AK12: 165 | AL12: 166 | AM12: 185 | AO12: 220 | AQ12: =((205-25)/(210-30))*($AO12-10-30)+25 -> 205 | AR12: 195 | AS12: 185 | AT12: 175 | AU12: 165 | AW12: 220 | AX12: 240 | AY12: 260 | AZ12: 270 | BA12: 290 | BB12: 310 | BD12: 360 | BF12: =((350-50)/(360-60))*($BD12-60)+50 -> 350 | BG12: 345 | BH12: 340 | BI12: 335 | BJ12: 330 | BL12: 360 | BM12: 370 | BN12: 395 | BO12: 415 | BQ12: 160 | BR12: 85 | BV12: 160 | BW12: 185 | BX12: 260 | BY12: 310 | BZ12: 385 | CB12: 40 | CC12: 510 | CD12: 560 | CG12: 3 | CH12: 813.75 | CI12: 51 | CJ12: 951 | CK12: 247.5 | CM12: 1.431693989 | CN12: -1114.040984
C13: Age : | D13: 10 | U13: =INDEX(AA6:AG6,1,U11) -> 30 | V13: pts | W13: 15 | X13: 30 | Z13: 135 | AA13: 65 | AB13: 75 | AC13: 85 | AI13: 135 | AJ13: 140 | AK13: 160 | AL13: 161 | AM13: 180 | AO13: 210 | AP13: =((205-25)/(210-30))*(AO13-30)+25 -> 205 | AQ13: 195 | AR13: 185 | AS13: 175 | AT13: 165 | AU13: 155 | AW13: 210 | AX13: 230 | AY13: 250 | AZ13: 260 | BA13: 280 | BB13: 300 | BD13: 355 | BE13: =((350-50)/(355-55))*($BD13-55)+50 -> 350 | BF13: 345 | BG13: 340 | BH13: 335 | BI13: 330 | BJ13: 325 | BL13: 355 | BM13: 365 | BN13: 390 | BO13: 410 | BQ13: 165 | BR13: 90 | BV13: 165 | BW13: 190 | BX13: 265 | BY13: 315 | BZ13: 390 | CB13: 50 | CC13: 510 | CD13: 560 | CG13: 4 | CH13: 831 | CI13: 51 | CJ13: 967.5 | CK13: 247.5 | CM13: 1.43956044 | CN13: -1145.274725
W14: 14 | X14: 34 | Z14: 130 | AA14: 60 | AB14: 70 | AC14: 80 | AD14: =((90-10)/(160-80))*(Z14+30-80)+10 -> 90 | AI14: 130 | AJ14: 135 | AK14: 155 | AL14: 156 | AM14: 175 | AO14: 200 | AP14: 195 | AQ14: 185 | AR14: 175 | AS14: 165 | AT14: 155 | AU14: 145 | AW14: 200 | AX14: 220 | AY14: 240 | AZ14: 250 | BA14: 270 | BB14: 290 | BD14: 350 | BE14: 345 | BF14: 340 | BG14: 335 | BH14: 330 | BI14: 325 | BJ14: 320 | BL14: 350 | BM14: 360 | BN14: 385 | BO14: 405 | BQ14: 170 | BR14: 95 | BV14: 170 | BW14: 195 | BX14: 270 | BY14: 320 | BZ14: 395 | CB14: 60 | CC14: 510 | CD14: 560 | CG14: 5 | CH14: 848.25 | CI14: 51 | CJ14: 984.75 | CK14: 247.5 | CM14: 1.43956044 | CN14: -1170.107143
D15: =((10-90)/(20-0))*(D13-0)+90 -> 50 | E15: pts | U15: Total | W15: 13 | X15: 38 | Z15: 125 | AA15: 55 | AB15: 65 | AC15: 75 | AD15: 85 | AI15: 125 | AJ15: 130 | AK15: 150 | AL15: 151 | AM15: 170 | AO15: 190 | AP15: 185 | AQ15: 175 | AR15: 165 | AS15: 155 | AT15: 145 | AU15: 135 | AW15: 190 | AX15: 210 | AY15: 230 | AZ15: 240 | BA15: 260 | BB15: 280 | BD15: 345 | BE15: 340 | BF15: 335 | BG15: 330 | BH15: 325 | BI15: 320 | BJ15: 315 | BL15: 345 | BM15: 355 | BN15: 380 | BO15: 400 | BQ15: 175 | BR15: 100 | BV15: 175 | BW15: 200 | BX15: 275 | BY15: 325 | BZ15: 400 | CB15: 70 | CC15: 510 | CD15: 560 | CG15: 6 | CH15: 865.5 | CI15: 51 | CJ15: 1002 | CK15: 247.5 | CM15: 1.43956044 | CN15: -1194.93956
U16: =D15+U13 -> 80 | V16: pts | W16: 12 | X16: 42 | Z16: 120 | AA16: 50 | AB16: 60 | AC16: 70 | AD16: 80 | AE16: =((90-10)/(160-80))*(Z16+40-80)+10 -> 90 | AI16: 120 | AJ16: 125 | AK16: 145 | AL16: 146 | AM16: 165 | AO16: 180 | AP16: 175 | AQ16: 165 | AR16: 155 | AS16: 145 | AT16: 135 | AU16: 125 | AW16: 180 | AX16: 200 | AY16: 220 | AZ16: 230 | BA16: 250 | BB16: 270 | BD16: 340 | BE16: 335 | BF16: 330 | BG16: 325 | BH16: 320 | BI16: 315 | BJ16: 310 | BL16: 340 | BM16: 350 | BN16: 375 | BO16: 395 | BQ16: 180 | BR16: 105 | BV16: 180 | BW16: 205 | BX16: 280 | BY16: 330 | BZ16: 405 | CB16: 80 | CC16: 510 | CD16: 560 | CG16: 7 | CH16: 882 | CI16: 51 | CJ16: 1019.25 | CK16: 247.5 | CM16: 1.431693989 | CN16: -1211.754098
A17: !!! Ne déplacez les graphiques | W17: 11 | X17: 46 | Z17: 115 | AA17: 45 | AB17: 55 | AC17: 65 | AD17: 75 | AE17: 85 | AI17: 115 | AJ17: 120 | AK17: 140 | AL17: 141 | AM17: 160 | AO17: 170 | AP17: 165 | AQ17: 155 | AR17: 145 | AS17: 135 | AT17: 125 | AU17: 115 | AW17: 170 | AX17: 190 | AY17: 210 | AZ17: 220 | BA17: 240 | BB17: 260 | BD17: 335 | BE17: 330 | BF17: 325 | BG17: 320 | BH17: 315 | BI17: 310 | BJ17: 305 | BL17: 335 | BM17: 345 | BN17: 370 | BO17: 390 | BQ17: 185 | BR17: 110 | BV17: 185 | BW17: 210 | BX17: 285 | BY17: 335 | BZ17: 410 | CB17: 90 | CC17: 510 | CD17: 560 | CF17: Complexité | CG17: 1 | CH17: 1020 | CI17: 297.75 | CJ17: 780 | CK17: 447.75 | CM17: -0.625 | CN17: 935.25
A18: sous aucun prétexte!!! | W18: 10 | X18: 50 | Z18: 110 | AA18: 40 | AB18: 50 | AC18: 60 | AD18: 70 | AE18: 80 | AF18: =((90-10)/(160-80))*(Z18+50-80)+10 -> 90 | AI18: 110 | AJ18: 115 | AK18: 135 | AL18: 136 | AM18: 155 | AO18: 160 | AP18: 155 | AQ18: 145 | AR18: 135 | AS18: 125 | AT18: 115 | AU18: 105 | AW18: 160 | AX18: 180 | AY18: 200 | AZ18: 210 | BA18: 230 | BB18: 250 | BD18: 330 | BE18: 325 | BF18: 320 | BG18: 315 | BH18: 310 | BI18: 305 | BJ18: 300 | BL18: 330 | BM18: 340 | BN18: 365 | BO18: 385 | BQ18: 190 | BR18: 115 | BV18: 190 | BW18: 215 | BX18: 290 | BY18: 340 | BZ18: 415 | CB18: 100 | CC18: 510 | CD18: 560 | CG18: 2 | CH18: 1020 | CI18: 318.75 | CJ18: 780 | CK18: 468.75 | CM18: -0.625 | CN18: 956.25
W19: 9 | X19: 54 | Z19: 105 | AA19: 35 | AB19: 45 | AC19: 55 | AD19: 65 | AE19: 75 | AF19: 85 | AI19: 105 | AJ19: 110 | AK19: 130 | AL19: 131 | AM19: 150 | AO19: 150 | AP19: 145 | AQ19: 135 | AR19: 125 | AS19: 115 | AT19: 105 | AU19: 95 | AW19: 150 | AX19: 170 | AY19: 190 | AZ19: 200 | BA19: 220 | BB19: 240 | BD19: 325 | BE19: 320 | BF19: 315 | BG19: 310 | BH19: 305 | BI19: 300 | BJ19: 295 | BL19: 325 | BM19: 335 | BN19: 360 | BO19: 380 | BQ19: 195 | BR19: 120 | BV19: 195 | BW19: 220 | BX19: 295 | BY19: 345 | BZ19: 420 | CG19: 3 | CH19: 1020 | CI19: 318.75 | CJ19: 780 | CK19: 468.75 | CM19: -0.625 | CN19: 956.25
W20: 8 | X20: 58 | Z20: 100 | AA20: 30 | AB20: 40 | AC20: 50 | AD20: 60 | AE20: 70 | AF20: 80 | AG20: =((90-10)/(160-80))*(Z20+60-80)+10 -> 90 | AI20: 100 | AJ20: 105 | AK20: 125 | AL20: 126 | AM20: 145 | AO20: 140 | AP20: 135 | AQ20: 125 | AR20: 115 | AS20: 105 | AT20: 95 | AU20: 85 | AW20: 140 | AX20: 160 | AY20: 180 | AZ20: 190 | BA20: 210 | BB20: 230 | BD20: 320 | BE20: 315 | BF20: 310 | BG20: 305 | BH20: 300 | BI20: 295 | BJ20: 290 | BL20: 320 | BM20: 330 | BN20: 355 | BO20: 375 | BQ20: 200 | BR20: 125 | BV20: 200 | BW20: 225 | BX20: 300 | BY20: 350 | BZ20: 425 | CG20: 4 | CH20: 1020 | CI20: 340.5 | CJ20: 780 | CK20: 490.5 | CM20: -0.625 | CN20: 978
W21: 7 | X21: 62 | Z21: 95 | AA21: 25 | AB21: 35 | AC21: 45 | AD21: 55 | AE21: 65 | AF21: 75 | AG21: =((90-10)/(160-80))*(Z21+60-80)+10 -> 85 | AI21: 95 | AJ21: 100 | AK21: 120 | AL21: 121 | AM21: 140 | AO21: 130 | AP21: 125 | AQ21: 115 | AR21: 105 | AS21: 95 | AT21: 85 | AU21: 75 | AW21: 130 | AX21: 150 | AY21: 170 | AZ21: 180 | BA21: 200 | BB21: 220 | BD21: 315 | BE21: 310 | BF21: 305 | BG21: 300 | BH21: 295 | BI21: 290 | BJ21: 285 | BL21: 315 | BM21: 325 | BN21: 350 | BO21: 370 | BQ21: 205 | BR21: 130 | BV21: 205 | BW21: 230 | BX21: 305 | BY21: 355 | BZ21: 430 | CF21: Coût | CG21: 1 | CH21: 540 | CI21: 297.75 | CJ21: 352.5 | CK21: 492 | CM21: -1.036 | CN21: =CI21-CM21*CH21 -> 857.19
F22: COUT | W22: 6 | X22: 66 | Z22: 90 | AA22: 20 | AB22: 30 | AC22: 40 | AD22: 50 | AE22: 60 | AF22: 70 | AG22: =((90-10)/(160-80))*(Z22+60-80)+10 -> 80 | AI22: 90 | AJ22: 95 | AK22: 115 | AL22: 116 | AM22: 135 | AO22: 120 | AP22: 115 | AQ22: 105 | AR22: 95 | AS22: 85 | AT22: 75 | AU22: 65 | AW22: 120 | AX22: 140 | AY22: 160 | AZ22: 170 | BA22: 190 | BB22: 210 | BD22: 310 | BE22: 305 | BF22: 300 | BG22: 295 | BH22: 290 | BI22: 285 | BJ22: 280 | BL22: 310 | BM22: 320 | BN22: 345 | BO22: 365 | BQ22: 210 | BR22: 135 | BV22: 210 | BW22: 235 | BX22: 310 | BY22: 360 | BZ22: 435 | CG22: 2 | CH22: 529.5 | CI22: 297.75 | CJ22: 342 | CK22: 492 | CM22: -1.036 | CN22: 846.312
W23: 5 | X23: 70 | Z23: 85 | AA23: =((90-10)/(160-80))*(Z23-80)+10 -> 15 | AB23: =((90-10)/(160-80))*(Z23+10-80)+10 -> 25 | AC23: =((90-10)/(160-80))*(Z23+20-80)+10 -> 35 | AD23: =((90-10)/(160-80))*(Z23+30-80)+10 -> 45 | AE23: =((90-10)/(160-80))*(Z23+40-80)+10 -> 55 | AF23: 65 | AG23: =((90-10)/(160-80))*(Z23+60-80)+10 -> 75 | AI23: 85 | AJ23: 90 | AK23: 110 | AL23: 111 | AM23: 130 | AO23: 110 | AP23: 105 | AQ23: 95 | AR23: 85 | AS23: 75 | AT23: 65 | AU23: 55 | AW23: 110 | AX23: 130 | AY23: 150 | AZ23: 160 | BA23: 180 | BB23: 200 | BD23: 305 | BE23: 300 | BF23: 295 | BG23: 290 | BH23: 285 | BI23: 280 | BJ23: 275 | BL23: 305 | BM23: 315 | BN23: 340 | BO23: 360 | BQ23: 215 | BR23: 140 | BV23: 215 | BW23: 240 | BX23: 315 | BY23: 365 | BZ23: 440 | CG23: 3 | CH23: 519 | CI23: 297.75 | CJ23: 331.5 | CK23: 492 | CM23: -1.036 | CN23: 835.434
W24: 4 | X24: 74 | Z24: 80 | AA24: =((90-10)/(160-80))*(Z24-80)+10 -> 10 | AB24: =((90-10)/(160-80))*(Z24+10-80)+10 -> 20 | AC24: 30 | AD24: =((90-10)/(160-80))*(Z24+30-80)+10 -> 40 | AE24: =((90-10)/(160-80))*(Z24+40-80)+10 -> 50 | AF24: 60 | AG24: =((90-10)/(160-80))*(Z24+60-80)+10 -> 70 | AI24: 80 | AJ24: 85 | AK24: 105 | AL24: 106 | AM24: 125 | AO24: 100 | AP24: 95 | AQ24: 85 | AR24: 75 | AS24: 65 | AT24: 55 | AU24: 45 | AW24: 100 | AX24: 120 | AY24: 140 | AZ24: 150 | BA24: 170 | BB24: 190 | BD24: 300 | BE24: 295 | BF24: 290 | BG24: 285 | BH24: 280 | BI24: 275 | BJ24: 270 | BL24: 300 | BM24: 310 | BN24: 335 | BO24: 355 | BQ24: 220 | BR24: 145 | BV24: 220 | BW24: 245 | BX24: 320 | BY24: 370 | BZ24: 445 | CG24: 4 | CH24: 508.5 | CI24: 297.75 | CJ24: 321 | CK24: 492 | CM24: -1.036 | CN24: 824.556
W25: 3 | X25: 78 | Z25: 75 | AB25: =((90-10)/(160-80))*(Z25+10-80)+10 -> 15 | AC25: 25 | AD25: =((90-10)/(160-80))*(Z25+30-80)+10 -> 35 | AE25: =((90-10)/(160-80))*(Z25+40-80)+10 -> 45 | AF25: =((90-10)/(160-80))*(Z25+50-80)+10 -> 55 | AG25: =((90-10)/(160-80))*(Z25+60-80)+10 -> 65 | AI25: 75 | AJ25: 80 | AK25: 100 | AL25: 101 | AM25: 120 | AO25: 90 | AP25: 85 | AQ25: 75 | AR25: 65 | AS25: 55 | AT25: 45 | AU25: 35 | AW25: 90 | AX25: 110 | AY25: 130 | AZ25: 140 | BA25: 160 | BB25: 180 | BD25: 295 | BE25: 290 | BF25: 285 | BG25: 280 | BH25: 275 | BI25: 270 | BJ25: 265 | BL25: 295 | BM25: 305 | BN25: 330 | BO25: 350 | BQ25: 225 | BR25: 150 | BV25: 225 | BW25: 250 | BX25: 325 | BY25: 375 | BZ25: 450 | CG25: 5 | CH25: 498 | CI25: 297.75 | CJ25: 310.5 | CK25: 492 | CM25: -1.036 | CN25: 813.678
W26: 2 | X26: 82 | Z26: 70 | AB26: =((90-10)/(160-80))*(Z26+10-80)+10 -> 10 | AC26: 20 | AD26: 30 | AE26: 40 | AF26: 50 | AG26: 60 | AI26: 70 | AJ26: 75 | AK26: 95 | AL26: 96 | AM26: 115 | AO26: 80 | AP26: 75 | AQ26: 65 | AR26: 55 | AS26: 45 | AT26: 35 | AU26: 25 | AW26: 80 | AX26: 100 | AY26: 120 | AZ26: 130 | BA26: 150 | BB26: 170 | BD26: 290 | BE26: 285 | BF26: 280 | BG26: 275 | BH26: 270 | BI26: 265 | BJ26: 260 | BL26: 290 | BM26: 300 | BN26: 325 | BO26: 345 | BQ26: 230 | BR26: 155 | BV26: 230 | BW26: 255 | BX26: 330 | BY26: 380 | BZ26: 455 | CG26: 6 | CH26: 488.25 | CI26: 297.75 | CJ26: 300 | CK26: 492 | CM26: -1.03187251 | CN26: 801.561753
W27: 1 | X27: 86 | Z27: 65 | AC27: 15 | AD27: 25 | AE27: 35 | AF27: 45 | AG27: 55 | AI27: 65 | AJ27: 70 | AK27: 90 | AL27: 91 | AM27: 110 | AO27: 70 | AP27: 65 | AQ27: 55 | AR27: 45 | AS27: 35 | AT27: 25 | AW27: 70 | AX27: 90 | AY27: 110 | AZ27: 120 | BA27: 140 | BB27: 160 | BD27: 285 | BE27: 280 | BF27: 275 | BG27: 270 | BH27: 265 | BI27: 260 | BJ27: 255 | BL27: 285 | BM27: 295 | BN27: 320 | BO27: 340 | BQ27: 235 | BR27: 160 | BV27: 235 | BW27: 260 | BX27: 335 | BY27: 385 | BZ27: 460 | CF27: Origine | CG27: 1 | CH27: 540 | CI27: 567.75 | CJ27: 300 | CK27: 717 | CM27: =(CI27-CK27)/(CH27-CJ27) -> -0.621875 | CN27: =CI27-CM27*CH27 -> 903.5625
W28: 0 | X28: 90 | Z28: 60 | AC28: 10 | AD28: 20 | AE28: 30 | AF28: 40 | AG28: 50 | AI28: 60 | AJ28: 65 | AK28: 85 | AL28: 86 | AM28: 105 | AO28: 60 | AP28: 55 | AQ28: 45 | AR28: 35 | AS28: 25 | AW28: 60 | AX28: 80 | AY28: 100 | AZ28: 110 | BA28: 130 | BB28: 150 | BD28: 280 | BE28: 275 | BF28: 270 | BG28: 265 | BH28: 260 | BI28: 255 | BJ28: 250 | BL28: 280 | BM28: 290 | BN28: 315 | BO28: 335 | BQ28: 240 | BR28: 165 | BS28: =((435-65)/(610-240))*($BQ28-240)+65 -> 65 | BV28: 240 | BW28: 265 | BX28: 340 | BY28: 390 | BZ28: 465 | CG28: 2 | CH28: 540 | CI28: 580.5 | CJ28: 300 | CK28: 729.75 | CM28: =(CI28-CK28)/(CH28-CJ28) -> -0.621875 | CN28: =CI28-CM28*CH28 -> 916.3125
Z29: 55 | AD29: 15 | AE29: 25 | AF29: 35 | AG29: 45 | AI29: 55 | AJ29: 60 | AK29: 80 | AL29: 81 | AM29: 100 | AO29: 50 | AP29: 45 | AQ29: 35 | AR29: 25 | AW29: 50 | AX29: 70 | AY29: 90 | AZ29: 100 | BA29: 120 | BB29: 140 | BD29: 275 | BE29: 270 | BF29: 265 | BG29: 260 | BH29: 255 | BI29: 250 | BJ29: 245 | BL29: 275 | BM29: 285 | BN29: 310 | BO29: 330 | BQ29: 245 | BR29: 170 | BS29: 70 | BV29: 245 | BW29: 270 | BX29: 345 | BY29: 395 | BZ29: 470 | CG29: 3 | CH29: 540 | CI29: 587.25 | CJ29: 300 | CK29: 736.5 | CM29: =(CI29-CK29)/(CH29-CJ29) -> -0.621875 | CN29: =CI29-CM29*CH29 -> 923.0625
U30: 2 | Z30: 50 | AD30: 10 | AE30: 20 | AF30: 30 | AG30: 40 | AI30: 50 | AJ30: 55 | AK30: 75 | AL30: 76 | AM30: 95 | AO30: 40 | AP30: 35 | AQ30: 25 | AW30: 40 | AX30: 60 | AY30: 80 | AZ30: 90 | BA30: 110 | BB30: 130 | BD30: 270 | BE30: 265 | BF30: 260 | BG30: 255 | BH30: 250 | BI30: 245 | BJ30: 240 | BL30: 270 | BM30: 280 | BN30: 305 | BO30: 325 | BQ30: 250 | BR30: 175 | BS30: 75 | BV30: 250 | BW30: 275 | BX30: 350 | BY30: 400 | BZ30: 475 | CG30: 4 | CH30: 540 | CI30: 600 | CJ30: 300 | CK30: 746.25 | CM30: =(CI30-CK30)/(CH30-CJ30) -> -0.609375 | CN30: =CI30-CM30*CH30 -> 929.0625
Z31: 45 | AE31: 15 | AF31: 25 | AG31: 35 | AI31: 45 | AJ31: 50 | AK31: 70 | AL31: 71 | AM31: 90 | AO31: 30 | AP31: 25 | AW31: 30 | AX31: 50 | AY31: 70 | AZ31: 80 | BA31: 100 | BB31: 120 | BD31: 265 | BE31: 260 | BF31: 255 | BG31: 250 | BH31: 245 | BI31: 240 | BJ31: 235 | BL31: 265 | BM31: 275 | BN31: 300 | BO31: 320 | BQ31: 255 | BR31: 180 | BS31: 80 | BV31: 255 | BW31: 280 | BX31: 355 | BY31: 405 | BZ31: 480 | CG31: 5 | CH31: 540 | CI31: 613.5 | CJ31: 300 | CK31: 758.25 | CM31: =(CI31-CK31)/(CH31-CJ31) -> -0.603125 | CN31: =CI31-CM31*CH31 -> 939.1875
B32: 2 | U32: =INDEX(AJ6:AM6,1,U30) -> 25 | V32: pts | Z32: 40 | AE32: 10 | AF32: 20 | AG32: 30 | AI32: 40 | AJ32: 45 | AK32: 65 | AL32: 66 | AM32: 85 | BD32: 260 | BE32: 255 | BF32: 250 | BG32: 245 | BH32: 240 | BI32: 235 | BJ32: 230 | BL32: 260 | BM32: 270 | BN32: 295 | BO32: 315 | BQ32: 260 | BR32: 185 | BS32: 85 | BV32: 260 | BW32: 285 | BX32: 360 | BY32: 410 | BZ32: 485 | CF32: Robustesse | CG32: 1 | CH32: 780 | CI32: 568.5 | CJ32: 1001.25 | CK32: 760.5 | CM32: =(CI32-CK32)/(CH32-CJ32) -> 0.8677966102 | CN32: =CI32-CM32*CH32 -> -108.3813559
Z33: 35 | AF33: 15 | AG33: 25 | AI33: 35 | AJ33: 40 | AK33: 60 | AL33: 61 | AM33: 80 | BD33: 255 | BE33: 250 | BF33: 245 | BG33: 240 | BH33: 235 | BI33: 230 | BJ33: 225 | BL33: 255 | BM33: 265 | BN33: 290 | BO33: 310 | BQ33: 265 | BR33: 190 | BS33: 90 | BV33: 265 | BW33: 290 | BX33: 365 | BY33: 415 | BZ33: 490 | CG33: 2 | CH33: 783.75 | CI33: 568.5 | CJ33: 1004.25 | CK33: 760.5 | CM33: 0.8707482993 | CN33: -113.9489796
A34: =INDEX(AP6:AU6,1,B32) -> 15 | B34: pts | U34: Total | Z34: 30 | AF34: 10 | AG34: 20 | AI34: 30 | AJ34: 35 | AK34: 55 | AL34: 56 | AM34: 75 | BD34: 250 | BE34: 245 | BF34: 240 | BG34: 235 | BH34: 230 | BI34: 225 | BJ34: 220 | BL34: 250 | BM34: 260 | BN34: 285 | BO34: 305 | BQ34: 270 | BR34: 195 | BS34: 95 | BV34: 270 | BW34: 295 | BX34: 370 | BY34: 420 | BZ34: 495 | CG34: 3 | CH34: 786.75 | CI34: 568.5 | CJ34: 1008.75 | CK34: 760.5 | CM34: 0.8648648649 | CN34: -111.9324324
U35: =U16+U32 -> 105 | V35: pts | Z35: 25 | AG35: 15 | AI35: 25 | AJ35: 30 | AK35: 50 | AL35: 51 | AM35: 70 | BD35: 245 | BE35: 240 | BF35: 235 | BG35: 230 | BH35: 225 | BI35: 220 | BJ35: 215 | BL35: 245 | BM35: 255 | BN35: 280 | BO35: 300 | BQ35: 275 | BR35: 200 | BS35: 100 | BV35: 275 | BW35: 300 | BX35: 375 | BY35: 425 | BZ35: 500 | CG35: 4 | CH35: 790.5 | CI35: 568.5 | CJ35: 1012.5 | CK35: 760.5 | CM35: 0.8648648649 | CN35: -115.1756757
A36: Total | Z36: 20 | AG36: 10 | AI36: 20 | AJ36: 25 | AK36: 45 | AL36: 46 | AM36: 65 | BD36: 240 | BE36: 235 | BF36: 230 | BG36: 225 | BH36: 220 | BI36: 215 | BJ36: 210 | BL36: 240 | BM36: 250 | BN36: 275 | BO36: 295 | BQ36: 280 | BR36: 205 | BS36: 105 | BV36: 280 | BW36: 305 | BX36: 380 | BY36: 430 | BZ36: 505 | CG36: 5 | CH36: 795 | CI36: 568.5 | CJ36: 1015.5 | CK36: 760.5 | CM36: 0.8707482993 | CN36: -123.744898
A37: =U35+A34 -> 120 | B37: pts | BD37: 235 | BE37: 230 | BF37: 225 | BG37: 220 | BH37: 215 | BI37: 210 | BJ37: 205 | BL37: 235 | BM37: 245 | BN37: 270 | BO37: 290 | BQ37: 285 | BR37: 210 | BS37: 110 | BV37: 285 | BW37: 310 | BX37: 385 | BY37: 435 | BZ37: 510 | CG37: 6 | CH37: 798 | CI37: 568.5 | CJ37: 1019.25 | CK37: 760.5 | CM37: 0.8677966102 | CN37: -124.0016949
BD38: 230 | BE38: 225 | BF38: 220 | BG38: 215 | BH38: 210 | BI38: 205 | BJ38: 200 | BL38: 230 | BM38: 240 | BN38: 265 | BO38: 285 | BQ38: 290 | BR38: 215 | BS38: 115 | BV38: 290 | BW38: 315 | BX38: 390 | BY38: 440 | BZ38: 515 | CF38: Perte produits | CG38: 1 | CH38: 1019.25 | CI38: 861 | CJ38: 779.25 | CK38: 1028.5 | CM38: -0.6979166667 | CN38: 1572.351562
BD39: 225 | BE39: 220 | BF39: 215 | BG39: 210 | BH39: 205 | BI39: 200 | BJ39: 195 | BL39: 225 | BM39: 235 | BN39: 260 | BO39: 280 | BQ39: 295 | BR39: 220 | BS39: 120 | BV39: 295 | BW39: 320 | BX39: 395 | BY39: 445 | BZ39: 520 | CG39: 2 | CH39: 1019.25 | CI39: 847.5 | CJ39: 779.25 | CK39: 1015.5 | CM39: =(CI39-CK39)/(CH39-CJ39) -> -0.7 | CN39: =CI39-CM39*CH39 -> 1560.975
N40: COMPLEXITE | BD40: 220 | BE40: 215 | BF40: 210 | BG40: 205 | BH40: 200 | BI40: 195 | BJ40: 190 | BL40: 220 | BM40: 230 | BN40: 255 | BO40: 275 | BQ40: 300 | BR40: 225 | BS40: 125 | BV40: 300 | BW40: 325 | BX40: 400 | BY40: 450 | BZ40: 525 | CG40: 3 | CH40: 1019.25 | CI40: 837.75 | CJ40: 779.25 | CK40: 1005 | CM40: -0.696875 | CN40: 1548.039844
BD41: 215 | BE41: 210 | BF41: 205 | BG41: 200 | BH41: 195 | BI41: 190 | BJ41: 185 | BL41: 215 | BM41: 225 | BN41: 250 | BO41: 270 | BQ41: 305 | BR41: 230 | BS41: 130 | BV41: 305 | BW41: 330 | BX41: 405 | BY41: 455 | BZ41: 530 | CF41: Conditions de travail | CG41: 1 | CH41: 463.5 | CI41: 837.75 | CJ41: 300 | CK41: 1029 | CM41: -1.169724771 | CN41: 1379.917431
BD42: 210 | BE42: 205 | BF42: 200 | BG42: 195 | BH42: 190 | BI42: 185 | BJ42: 180 | BL42: 210 | BM42: 220 | BN42: 245 | BO42: 265 | BQ42: 310 | BR42: 235 | BS42: 135 | BV42: 310 | BW42: 335 | BX42: 410 | BY42: 460 | BZ42: 535 | CG42: 2 | CH42: 507.75 | CI42: 837.75 | CJ42: 344.25 | CK42: 1029 | CM42: -1.169724771 | CN42: 1431.677752
N43: ROBUSTESSE | BD43: 205 | BE43: 200 | BF43: 195 | BG43: 190 | BH43: 185 | BI43: 180 | BJ43: 175 | BL43: 205 | BM43: 215 | BN43: 240 | BO43: 260 | BQ43: 315 | BR43: 240 | BS43: 140 | BT43: =((435-65)/(685-315))*($BQ43-315)+65 -> 65 | BV43: 315 | BW43: 340 | BX43: 415 | BY43: 465 | BZ43: 540 | CG43: 3 | CH43: 540.75 | CI43: 837.75 | CJ43: 377.25 | CK43: 1029 | CM43: -1.169724771 | CN43: 1470.27867
BD44: 200 | BE44: 195 | BF44: 190 | BG44: 185 | BH44: 180 | BI44: 175 | BJ44: 170 | BL44: 200 | BM44: 210 | BN44: 235 | BO44: 255 | BQ44: 320 | BR44: 245 | BS44: 145 | BT44: 70 | BV44: 320 | BW44: 345 | BX44: 420 | BY44: 470 | BZ44: 545 | CF44: Délai | CG44: 1 | CH44: 302.25 | CI44: 1104.75 | CJ44: 539.25 | CK44: 1245 | CM44: 0.5917721519 | CN44: 925.8868671
BD45: 195 | BE45: 190 | BF45: 185 | BG45: 180 | BH45: 175 | BI45: 170 | BJ45: 165 | BL45: 195 | BM45: 205 | BN45: 230 | BO45: 250 | BQ45: 325 | BR45: 250 | BS45: 150 | BT45: 75 | BV45: 325 | BW45: 350 | BX45: 425 | BY45: 475 | BZ45: 550 | CG45: 2 | CH45: 302.25 | CI45: 1124.25 | CJ45: 539.25 | CK45: 1263.75 | CM45: 0.5886075949 | CN45: 946.3433544
BD46: 190 | BE46: 185 | BF46: 180 | BG46: 175 | BH46: 170 | BI46: 165 | BJ46: 160 | BL46: 190 | BM46: 200 | BN46: 225 | BO46: 245 | BQ46: 330 | BR46: 255 | BS46: 155 | BT46: 80 | BV46: 330 | BW46: 355 | BX46: 430 | BY46: 480 | BZ46: 555 | CG46: 3 | CH46: 302.25 | CI46: 1136.25 | CJ46: 539.25 | CK46: 1276.5 | CM46: 0.5917721519 | CN46: 957.3868671
BD47: 185 | BE47: 180 | BF47: 175 | BG47: 170 | BH47: 165 | BI47: 160 | BJ47: 155 | BL47: 185 | BM47: 195 | BN47: 220 | BO47: 240 | BQ47: 335 | BR47: 260 | BS47: 160 | BT47: 85 | BV47: 335 | BW47: 360 | BX47: 435 | BY47: 485 | BZ47: 560 | CG47: 4 | CH47: 302.25 | CI47: 1156.5 | CJ47: 539.25 | CK47: 1296 | CM47: 0.5886075949 | CN47: 978.5933544
BD48: 180 | BE48: 175 | BF48: 170 | BG48: 165 | BH48: 160 | BI48: 155 | BJ48: 150 | BL48: 180 | BM48: 190 | BN48: 215 | BO48: 235 | BQ48: 340 | BR48: 265 | BS48: 165 | BT48: 90 | BV48: 340 | BW48: 365 | BX48: 440 | BY48: 490 | BZ48: 565 | CF48: Résultat | CJ48: 825
BD49: 175 | BE49: 170 | BF49: 165 | BG49: 160 | BH49: 155 | BI49: 150 | BJ49: 145 | BL49: 175 | BM49: 185 | BN49: 210 | BO49: 230 | BQ49: 345 | BR49: 270 | BS49: 170 | BT49: 95 | BV49: 345 | BW49: 370 | BX49: 445 | BY49: 495 | BZ49: 570
BD50: 170 | BE50: 165 | BF50: 160 | BG50: 155 | BH50: 150 | BI50: 145 | BJ50: 140 | BL50: 170 | BM50: 180 | BN50: 205 | BO50: 225 | BQ50: 350 | BR50: 275 | BS50: 175 | BT50: 100 | BV50: 350 | BW50: 375 | BX50: 450 | BY50: 500 | BZ50: 575
BD51: 165 | BE51: 160 | BF51: 155 | BG51: 150 | BH51: 145 | BI51: 140 | BJ51: 135 | BL51: 165 | BM51: 175 | BN51: 200 | BO51: 220 | BQ51: 355 | BR51: 280 | BS51: 180 | BT51: 105 | BV51: 355 | BW51: 380 | BX51: 455 | BY51: 505 | BZ51: 580
B52: 5 | U52: 2 | BD52: 160 | BE52: 155 | BF52: 150 | BG52: 145 | BH52: 140 | BI52: 135 | BJ52: 130 | BL52: 160 | BM52: 170 | BN52: 195 | BO52: 215 | BQ52: 360 | BR52: 285 | BS52: 185 | BT52: 110 | BV52: 360 | BW52: 385 | BX52: 460 | BY52: 510 | BZ52: 585
BD53: 155 | BE53: 150 | BF53: 145 | BG53: 140 | BH53: 135 | BI53: 130 | BJ53: 125 | BL53: 155 | BM53: 165 | BN53: 190 | BO53: 210 | BQ53: 365 | BR53: 290 | BS53: 190 | BT53: 115 | BV53: 365 | BW53: 390 | BX53: 465 | BY53: 515 | BZ53: 590
A54: =INDEX(AX6:BB6,1,B52) -> 90 | B54: pts | U54: =INDEX(BE6:BJ6,1,U52) -> 10 | V54: pts | BD54: 150 | BE54: 145 | BF54: 140 | BG54: 135 | BH54: 130 | BI54: 125 | BJ54: 120 | BL54: 150 | BM54: 160 | BN54: 185 | BO54: 205 | BQ54: 370 | BR54: 295 | BS54: 195 | BT54: 120 | BV54: 370 | BW54: 395 | BX54: 470 | BY54: 520 | BZ54: 595
BD55: 145 | BE55: 140 | BF55: 135 | BG55: 130 | BH55: 125 | BI55: 120 | BJ55: 115 | BL55: 145 | BM55: 155 | BN55: 180 | BO55: 200 | BQ55: 375 | BR55: 300 | BS55: 200 | BT55: 125 | BV55: 375 | BW55: 400 | BX55: 475 | BY55: 525 | BZ55: 600
A56: Total | U56: Total | BD56: 140 | BE56: 135 | BF56: 130 | BG56: 125 | BH56: 120 | BI56: 115 | BJ56: 110 | BL56: 140 | BM56: 150 | BN56: 175 | BO56: 195 | BQ56: 380 | BR56: 305 | BS56: 205 | BT56: 130 | BV56: 380 | BW56: 405 | BX56: 480 | BY56: 530 | BZ56: 605
A57: =A37+A54 -> 210 | B57: pts | U57: =A57+U54 -> 220 | V57: pts | BD57: 135 | BE57: 130 | BF57: 125 | BG57: 120 | BH57: 115 | BI57: 110 | BJ57: 105 | BL57: 135 | BM57: 145 | BN57: 170 | BO57: 190 | BQ57: 385 | BR57: 310 | BS57: 210 | BT57: 135 | BV57: 385 | BW57: 410 | BX57: 485 | BY57: 535 | BZ57: 610
BD58: 130 | BE58: 125 | BF58: 120 | BG58: 115 | BH58: 110 | BI58: 105 | BJ58: 100 | BL58: 130 | BM58: 140 | BN58: 165 | BO58: 185 | BQ58: 390 | BR58: 315 | BS58: 215 | BT58: 140 | BV58: 390 | BW58: 415 | BX58: 490 | BY58: 540 | BZ58: 615
BD59: 125 | BE59: 120 | BF59: 115 | BG59: 110 | BH59: 105 | BI59: 100 | BJ59: 95 | BL59: 125 | BM59: 135 | BN59: 160 | BO59: 180 | BQ59: 395 | BR59: 320 | BS59: 220 | BT59: 145 | BV59: 395 | BW59: 420 | BX59: 495 | BY59: 545 | BZ59: 620
BD60: 120 | BE60: 115 | BF60: 110 | BG60: 105 | BH60: 100 | BI60: 95 | BJ60: 90 | BL60: 120 | BM60: 130 | BN60: 155 | BO60: 175 | BQ60: 400 | BR60: 325 | BS60: 225 | BT60: 150 | BV60: 400 | BW60: 425 | BX60: 500 | BY60: 550 | BZ60: 625
F61: ORIGINE | BD61: 115 | BE61: 110 | BF61: 105 | BG61: 100 | BH61: 95 | BI61: 90 | BJ61: 85 | BL61: 115 | BM61: 125 | BN61: 150 | BO61: 170 | BQ61: 405 | BR61: 330 | BS61: 230 | BT61: 155 | BV61: 405 | BW61: 430 | BX61: 505 | BY61: 555 | BZ61: 630
BD62: 110 | BE62: 105 | BF62: 100 | BG62: 95 | BH62: 90 | BI62: 85 | BJ62: 80 | BL62: 110 | BM62: 120 | BN62: 145 | BO62: 165 | BQ62: 410 | BR62: 335 | BS62: 235 | BT62: 160 | BV62: 410 | BW62: 435 | BX62: 510 | BY62: 560 | BZ62: 635
BD63: 105 | BE63: 100 | BF63: 95 | BG63: 90 | BH63: 85 | BI63: 80 | BJ63: 75 | BL63: 105 | BM63: 115 | BN63: 140 | BO63: 160 | BQ63: 415 | BR63: 340 | BS63: 240 | BT63: 165 | BV63: 415 | BW63: 440 | BX63: 515 | BY63: 565 | BZ63: 640
F64: CONDITIONS DE TRAVAIL | BD64: 100 | BE64: 95 | BF64: 90 | BG64: 85 | BH64: 80 | BI64: 75 | BJ64: 70 | BL64: 100 | BM64: 110 | BN64: 135 | BO64: 155 | BQ64: 420 | BR64: 345 | BS64: 245 | BT64: 170 | BV64: 420 | BW64: 445 | BX64: 520 | BY64: 570 | BZ64: 645
BD65: 95 | BE65: 90 | BF65: 85 | BG65: 80 | BH65: 75 | BI65: 70 | BJ65: 65 | BL65: 95 | BM65: 105 | BN65: 130 | BO65: 150 | BQ65: 425 | BR65: 350 | BS65: 250 | BT65: 175 | BV65: 425 | BW65: 450 | BX65: 525 | BY65: 575 | BZ65: 650
BD66: 90 | BE66: 85 | BF66: 80 | BG66: 75 | BH66: 70 | BI66: 65 | BJ66: 60 | BL66: 90 | BM66: 100 | BN66: 125 | BO66: 145 | BQ66: 430 | BR66: 355 | BS66: 255 | BT66: 180 | BV66: 430 | BW66: 455 | BX66: 530 | BY66: 580 | BZ66: 655
BD67: 85 | BE67: 80 | BF67: 75 | BG67: 70 | BH67: 65 | BI67: 60 | BJ67: 55 | BL67: 85 | BM67: 95 | BN67: 120 | BO67: 140 | BQ67: 435 | BR67: 360 | BS67: 260 | BT67: 185 | BV67: 435 | BW67: 460 | BX67: 535 | BY67: 585 | BZ67: 660
BD68: 80 | BE68: 75 | BF68: 70 | BG68: 65 | BH68: 60 | BI68: 55 | BJ68: 50 | BL68: 80 | BM68: 90 | BN68: 115 | BO68: 135 | BQ68: 440 | BR68: 365 | BS68: 265 | BT68: 190 | BV68: 440 | BW68: 465 | BX68: 540 | BY68: 590 | BZ68: 665
BD69: 75 | BE69: 70 | BF69: 65 | BG69: 60 | BH69: 55 | BI69: 50 | BL69: 75 | BM69: 85 | BN69: 110 | BO69: 130 | BQ69: 445 | BR69: 370 | BS69: 270 | BT69: 195 | BV69: 445 | BW69: 470 | BX69: 545 | BY69: 595 | BZ69: 670
BD70: 70 | BE70: 65 | BF70: 60 | BG70: 55 | BH70: 50 | BL70: 70 | BM70: 80 | BN70: 105 | BO70: 125 | BQ70: 450 | BR70: 375 | BS70: 275 | BT70: 200 | BV70: 450 | BW70: 475 | BX70: 550 | BY70: 600 | BZ70: 675
BD71: 65 | BE71: 60 | BF71: 55 | BG71: 50 | BL71: 65 | BM71: 75 | BN71: 100 | BO71: 120 | BQ71: 455 | BR71: 380 | BS71: 280 | BT71: 205 | BV71: 455 | BW71: 480 | BX71: 555 | BY71: 605 | BZ71: 680
B72: 2 | BD72: 60 | BE72: 55 | BF72: 50 | BL72: 60 | BM72: 70 | BN72: 95 | BO72: 115 | BQ72: 460 | BR72: 385 | BS72: 285 | BT72: 210 | BV72: 460 | BW72: 485 | BX72: 560 | BY72: 610 | BZ72: 685
U73: 3 | BD73: 55 | BE73: =((350-50)/(355-55))*($BD73-55)+50 -> 50 | BL73: 55 | BM73: =((390-65)/(380-55))*($BL73-55)+65 -> 65 | BN73: =((415-90)/(380-55))*($BL73-55)+90 -> 90 | BO73: =((435-110)/(380-55))*($BL73-55)+110 -> 110 | BQ73: 465 | BR73: =((435-65)/(510-140))*($BQ73-140)+65 -> 390 | BS73: =((435-65)/(610-240))*($BQ73-240)+65 -> 290 | BT73: =((435-65)/(685-315))*($BQ73-315)+65 -> 215 | BV73: 465 | BW73: =((710-165)/(685-140))*($BV73-140)+165 -> 490 | BX73: =((785-240)/(685-140))*($BV73-140)+240 -> 565 | BY73: =((710-165)/(835-290))*($BV73-140)+290 -> 615 | BZ73: =((710-165)/(910-365))*($BV73-140)+365 -> 690
A74: =INDEX(BR6:BT6,1,B72) -> 175 | B74: pts | BQ74: 470 | BR74: 395 | BS74: 295 | BT74: 220 | BV74: 470 | BW74: 495 | BX74: 570 | BY74: 620 | BZ74: 695
BQ75: 475 | BR75: 400 | BS75: 300 | BT75: 225 | BV75: 475 | BW75: 500 | BX75: 575 | BY75: 625 | BZ75: 700
A76: Total | U76: =INDEX(BM6:BO6,1,U73) -> 55 | V76: pts | BQ76: 480 | BR76: 405 | BS76: 305 | BT76: 230 | BV76: 480 | BW76: 505 | BX76: 580 | BY76: 630 | BZ76: 705
A77: =U79+A74 -> 450 | B77: pts | BQ77: 485 | BR77: 410 | BS77: 310 | BT77: 235 | BV77: 485 | BW77: 510 | BX77: 585 | BY77: 635 | BZ77: 710
U78: Total | BQ78: 490 | BR78: 415 | BS78: 315 | BT78: 240 | BV78: 490 | BW78: 515 | BX78: 590 | BY78: 640 | BZ78: 715
U79: =U57+U76 -> 275 | V79: pts | BQ79: 495 | BR79: 420 | BS79: 320 | BT79: 245 | BV79: 495 | BW79: 520 | BX79: 595 | BY79: 645 | BZ79: 720
BQ80: 500 | BR80: 425 | BS80: 325 | BT80: 250 | BV80: 500 | BW80: 525 | BX80: 600 | BY80: 650 | BZ80: 725
BQ81: 505 | BR81: 430 | BS81: 330 | BT81: 255 | BV81: 505 | BW81: 530 | BX81: 605 | BY81: 655 | BZ81: 730
N82: PERTE DE PRODUITS | BQ82: 510 | BR82: 435 | BS82: 335 | BT82: 260 | BV82: 510 | BW82: 535 | BX82: 610 | BY82: 660 | BZ82: 735
BQ83: 515 | BS83: 340 | BT83: 265 | BV83: 515 | BW83: 540 | BX83: 615 | BY83: 665 | BZ83: 740
BQ84: 520 | BS84: 345 | BT84: 270 | BV84: 520 | BW84: 545 | BX84: 620 | BY84: 670 | BZ84: 745
BQ85: 525 | BS85: 350 | BT85: 275 | BV85: 525 | BW85: 550 | BX85: 625 | BY85: 675 | BZ85: 750
BQ86: 530 | BS86: 355 | BT86: 280 | BV86: 530 | BW86: 555 | BX86: 630 | BY86: 680 | BZ86: 755
BQ87: 535 | BS87: 360 | BT87: 285 | BV87: 535 | BW87: 560 | BX87: 635 | BY87: 685 | BZ87: 760
BQ88: 540 | BS88: 365 | BT88: 290 | BV88: 540 | BW88: 565 | BX88: 640 | BY88: 690 | BZ88: 765
BQ89: 545 | BS89: 370 | BT89: 295 | BV89: 545 | BW89: 570 | BX89: 645 | BY89: 695 | BZ89: 770
BQ90: 550 | BS90: 375 | BT90: 300 | BV90: 550 | BW90: 575 | BX90: 650 | BY90: 700 | BZ90: 775
BQ91: 555 | BS91: 380 | BT91: 305 | BV91: 555 | BW91: 580 | BX91: 655 | BY91: 705 | BZ91: 780
BQ92: 560 | BS92: 385 | BT92: 310 | BV92: 560 | BW92: 585 | BX92: 660 | BY92: 710 | BZ92: 785
BQ93: 565 | BS93: 390 | BT93: 315 | BV93: 565 | BW93: 590 | BX93: 665 | BY93: 715 | BZ93: 790
B94: 1 | S94: SCORE | BQ94: 570 | BS94: 395 | BT94: 320 | BV94: 570 | BW94: 595 | BX94: 670 | BY94: 720 | BZ94: 795
BQ95: 575 | BS95: 400 | BT95: 325 | BV95: 575 | BW95: 600 | BX95: 675 | BY95: 725 | BZ95: 800
A96: =INDEX(BW6:BZ6,1,B94) -> 25 | B96: pts | S96: =A99 -> 475 | BQ96: 580 | BS96: 405 | BT96: 330 | BV96: 580 | BW96: 605 | BX96: 680 | BY96: 730 | BZ96: 805
BQ97: 585 | BS97: 410 | BT97: 335 | BV97: 585 | BW97: 610 | BX97: 685 | BY97: 735 | BZ97: 810
A98: Total | BQ98: 590 | BS98: 415 | BT98: 340 | BV98: 590 | BW98: 615 | BX98: 690 | BY98: 740 | BZ98: 815
A99: =A77+A96 -> 475 | B99: pts | BQ99: 595 | BS99: 420 | BT99: 345 | BV99: 595 | BW99: 620 | BX99: 695 | BY99: 745 | BZ99: 820
BQ100: 600 | BS100: 425 | BT100: 350 | BV100: 600 | BW100: 625 | BX100: 700 | BY100: 750 | BZ100: 825
BQ101: 605 | BS101: 430 | BT101: 355 | BV101: 605 | BW101: 630 | BX101: 705 | BY101: 755 | BZ101: 830
BQ102: 610 | BS102: 435 | BT102: 360 | BV102: 610 | BW102: 635 | BX102: 710 | BY102: 760 | BZ102: 835
F103: DELAI | N103: RESULTAT | BQ103: 615 | BT103: 365 | BV103: 615 | BW103: 640 | BX103: 715 | BY103: 765 | BZ103: 840
BQ104: 620 | BT104: 370 | BV104: 620 | BW104: 645 | BX104: 720 | BY104: 770 | BZ104: 845
BQ105: 625 | BT105: 375 | BV105: 625 | BW105: 650 | BX105: 725 | BY105: 775 | BZ105: 850
BQ106: 630 | BT106: 380 | BV106: 630 | BW106: 655 | BX106: 730 | BY106: 780 | BZ106: 855
BQ107: 635 | BT107: 385 | BV107: 635 | BW107: 660 | BX107: 735 | BY107: 785 | BZ107: 860
BQ108: 640 | BT108: 390 | BV108: 640 | BW108: 665 | BX108: 740 | BY108: 790 | BZ108: 865
BQ109: 645 | BT109: 395 | BV109: 645 | BW109: 670 | BX109: 745 | BY109: 795 | BZ109: 870
BQ110: 650 | BT110: 400 | BV110: 650 | BW110: 675 | BX110: 750 | BY110: 800 | BZ110: 875
BQ111: 655 | BT111: 405 | BV111: 655 | BW111: 680 | BX111: 755 | BY111: 805 | BZ111: 880
BQ112: 660 | BT112: 410 | BV112: 660 | BW112: 685 | BX112: 760 | BY112: 810 | BZ112: 885
BQ113: 665 | BT113: 415 | BV113: 665 | BW113: 690 | BX113: 765 | BY113: 815 | BZ113: 890
BQ114: 670 | BT114: 420 | BV114: 670 | BW114: 695 | BX114: 770 | BY114: 820 | BZ114: 895
BQ115: 675 | BT115: 425 | BV115: 675 | BW115: 700 | BX115: 775 | BY115: 825 | BZ115: 900
BQ116: 680 | BT116: 430 | BV116: 680 | BW116: 705 | BX116: 780 | BY116: 830 | BZ116: 905
BQ117: 685 | BT117: 435 | BV117: 685 | BW117: 710 | BX117: 785 | BY117: 835 | BZ117: 910
